fUST/lending_fUST_20240117
["ID","MTS","AMOUNT","RATE_DAILY","PERIOD"]
[311910920,1705494640717,-500.0,0.00021917,2]
[311910922,1705494640726,-506.0700257,0.00021917,2]
[311910924,1705494640736,-500.0,0.00021917,2]
[311910926,1705494640745,-5602.24,0.00021917,2]
[311910928,1705494640754,-500.0,0.00021917,2]
[311910930,1705494640763,-500.0,0.00021917,2]
[311910932,1705494640772,-500.0,0.00021917,2]
[311910934,1705494640781,-500.0,0.00021917,2]
[311910936,1705494640791,-500.0,0.00021917,2]
[311910938,1705494640803,-2672.14,0.00021917,2]
[311910940,1705494640812,-500.0,0.00021917,2]
[311910942,1705494640821,-500.0,0.00021917,2]
[311910944,1705494640830,-500.0,0.00021917,2]
[311910946,1705494640842,-500.0,0.00021917,2]
[311910948,1705494640851,-500.0,0.00021917,2]
[311910950,1705494640862,-224.4532379,0.00021917,2]
[311910952,1705494640874,-500.0,0.00021917,2]
[311910954,1705494640883,-500.0,0.00021917,2]
[311910956,1705494640892,-500.0,0.00021917,2]
[311910958,1705494640901,-500.0,0.00021917,2]
[311910960,1705494640910,-500.0,0.00021917,2]
[311910962,1705494640920,-166.666666,0.00021918,2]
[311910964,1705494640929,-1216.94,0.00021999,2]
[311910966,1705494640939,-293.1976279,0.00022,4]
[311910968,1705494640949,-3955.54830897,0.00022,2]
[311910970,1705494640958,-425.53656097,0.00022,2]
[311910972,1705494640968,-374.76193364,0.00022,2]
[311910974,1705494640976,-13625.09175168,0.00022042,2]
[311910976,1705494640986,-5000.0,0.00022042,2]
[311910978,1705494640994,-35860.19534803,0.00022042,2]
[311910980,1705494641003,-5000.0,0.00022042,2]
[311910982,1705494641012,-51336.96851844,0.00022042,2]
[311910984,1705494641021,-1216.94,0.00022053,2]
[311910986,1705494641030,-1216.94,0.00022053,2]
[311910988,1705494641039,-1216.94,0.00022053,2]
[311910990,1705494641048,-1216.94,0.00022053,2]
[311910991,1705494641057,-500.0,0.00022054,2]
[311910993,1705494641067,-500.0,0.00022054,2]
[311910995,1705494641076,-500.0,0.00022054,2]
[311910997,1705494641085,-500.0,0.00022054,2]
[311911000,1705494641094,-500.0,0.00022054,2]
[311911002,1705494641103,-500.0,0.00022054,2]
[311911004,1705494641114,-500.0,0.00022054,2]
[311911006,1705494641123,-224.20797195,0.00022054,2]
[311911007,1705494641133,-500.0,0.00022054,2]
[311911009,1705494641142,-500.0,0.00022054,2]
[311911011,1705494641151,-500.0,0.00022054,2]
[311911013,1705494641160,-506.24435026,0.00022054,2]
[311911015,1705494641169,-500.0,0.00022054,2]
[311911017,1705494641178,-500.0,0.00022054,2]
[311911019,1705494641186,-720.85,0.00022054,2]
[311911021,1705494641196,-383.96915112,0.00022054,2]
[311911023,1705494641204,-827.75,0.00022054,2]
[311911025,1705494641213,-500.0,0.00022054,2]
[311911027,1705494641222,-500.0,0.00022054,2]
[311911029,1705494641231,-500.0,0.00022054,2]
[311911031,1705494641240,-1940.5,0.00022054,2]
[311911033,1705494641249,-500.0,0.00022054,2]
[311911035,1705494641258,-500.0,0.00022054,2]
[311911044,1705494641336,-2684.58,0.00022054,2]
[311911046,1705494641345,-455.57136527,0.00022054,2]
[311911048,1705494641354,-500.0,0.00022054,2]
[311911050,1705494641366,-500.0,0.00022054,2]
[311911052,1705494641375,-500.0,0.00022054,2]
[311911054,1705494641384,-389.81459753,0.00022054,2]
[311911057,1705494641394,-500.0,0.00022054,2]
[311911059,1705494641403,-500.0,0.00022054,2]
[311911061,1705494641413,-500.0,0.00022054,2]
[311911062,1705494641422,-500.0,0.00022054,2]
[311911064,1705494641465,-500.0,0.00022054,2]
[311911066,1705494641474,-500.0,0.00022054,2]
[311911068,1705494641485,-500.0,0.00022054,2]
[311911070,1705494641494,-617.23,0.00022054,2]
[311911071,1705494641503,-500.0,0.00022054,2]
[311911073,1705494641513,-501.27,0.00022054,2]
[311911074,1705494641522,-500.0,0.00022054,2]
[311911075,1705494641531,-1042.8,0.00022054,2]
[311911076,1705494641540,-500.0,0.00022054,2]
[311911077,1705494641548,-500.0,0.00022054,2]
[311911078,1705494641558,-500.0,0.00022054,2]
[311911079,1705494641567,-506.04587951,0.00022054,2]
[311911080,1705494641576,-866.01,0.00022054,2]
[311911081,1705494641585,-500.0,0.00022054,2]
[311911082,1705494641594,-1109.9,0.00022054,2]
[311911083,1705494641603,-517.59,0.00022054,2]
[311911084,1705494641614,-500.0,0.00022054,2]
[311911085,1705494641623,-382.58669765,0.00022054,2]
[311911086,1705494641632,-500.0,0.00022054,2]
[311911087,1705494641642,-500.0,0.00022054,2]
[311911088,1705494641651,-500.0,0.00022054,2]
[311911090,1705494641660,-500.0,0.00022054,2]
[311911092,1705494641670,-752.51,0.00022054,2]
[311911094,1705494641679,-2392.08,0.00022054,2]
[311911096,1705494641688,-500.0,0.00022054,2]
[311911097,1705494641697,-500.0,0.00022054,2]
[311911099,1705494641706,-1479.05,0.00022054,2]
[311911100,1705494641715,-500.0,0.00022054,2]
[311911101,1705494641725,-715.92,0.00022054,2]
[311911103,1705494641734,-500.0,0.00022054,2]
[311911104,1705494641743,-500.0,0.00022054,2]
[311911106,1705494641752,-500.0,0.00022054,2]
[311911107,1705494641761,-790.08,0.00022054,2]
[311911109,1705494641771,-6210.69,0.00022054,2]
[311911110,1705494641781,-742.35,0.00022054,2]
[311911111,1705494641790,-434.48775725,0.00022054,2]
[311911112,1705494641803,-500.0,0.00022054,2]
[311911113,1705494641813,-1557.0,0.00022054,2]
[311911114,1705494641822,-500.0,0.00022054,2]
[311911115,1705494641832,-500.0,0.00022054,2]
[311911116,1705494641842,-1239.78,0.00022054,2]
[311911117,1705494641851,-756.84,0.00022054,2]
[311911118,1705494641861,-500.0,0.00022054,2]
[311911119,1705494641871,-500.0,0.00022054,2]
[311911120,1705494641881,-500.0,0.00022054,2]
[311911121,1705494641892,-500.0,0.00022054,2]
[311911122,1705494641901,-500.0,0.00022054,2]
[311911123,1705494641910,-500.0,0.00022054,2]
[311911124,1705494641920,-615.35,0.00022054,2]
[311911125,1705494641929,-500.0,0.00022054,2]
[311911126,1705494641939,-783.67,0.00022054,2]
[311911127,1705494641948,-1167.59,0.00022054,2]
[311911128,1705494641957,-500.0,0.00022054,2]
[311911129,1705494641966,-500.0,0.00022054,2]
[311911130,1705494641975,-1571.76,0.00022054,2]
[311911131,1705494641984,-1742.78,0.00022054,2]
[311911132,1705494641993,-500.0,0.00022054,2]
[311911133,1705494642003,-2544.56,0.00022054,2]
[311911134,1705494642012,-15008.39,0.00022054,2]
[311911135,1705494642021,-500.0,0.00022054,2]
[311911136,1705494642030,-500.0,0.00022054,2]
[311911137,1705494642039,-2051.75,0.00022054,2]
[311911138,1705494642049,-500.0,0.00022054,2]
[311911139,1705494642058,-14580.15,0.00022054,2]
[311911140,1705494642067,-500.0,0.00022054,2]
[311911141,1705494642077,-500.0,0.00022054,2]
[311911142,1705494642086,-500.0,0.00022054,2]
[311911143,1705494642095,-454.086,0.00022054,2]
[311911144,1705494642104,-748.35,0.00022054,2]
[311911145,1705494642114,-500.0,0.00022054,2]
[311911146,1705494642123,-1068.65134143,0.00022054,2]
[311911147,1705494642132,-500.0,0.00022054,2]
[311911148,1705494642142,-500.0,0.00022054,2]
[311911149,1705494642151,-500.0,0.00022054,2]
[311911150,1705494642160,-357.88867272,0.00022054,2]
[311911151,1705494642169,-660.07,0.00022054,2]
[311911152,1705494642178,-2488.68,0.00022054,2]
[311911153,1705494642187,-500.0,0.00022054,2]
[311911154,1705494642196,-578.72,0.00022054,2]
[311911155,1705494642205,-500.0,0.00022054,2]
[311911156,1705494642215,-500.0,0.00022054,2]
[311911157,1705494642224,-500.0,0.00022054,2]
[311911158,1705494642233,-159.14815525,0.00022054,2]
[311911159,1705494642242,-500.0,0.00022054,2]
[311911160,1705494642251,-662.33,0.00022054,2]
[311911161,1705494642260,-1503.47,0.00022054,2]
[311911162,1705494642269,-500.0,0.00022054,2]
[311911163,1705494642278,-174.74456145,0.00022054,2]
[311911164,1705494642287,-500.0,0.00022054,2]
[311911165,1705494642296,-6856.53,0.00022054,2]
[311911166,1705494642306,-500.0,0.00022054,2]
[311911167,1705494642315,-500.0,0.00022054,2]
[311911168,1705494642324,-500.0,0.00022054,2]
[311911169,1705494642334,-500.0,0.00022054,2]
[311911170,1705494642343,-28360.88,0.00022054,2]
[311911171,1705494642352,-8391.97,0.00022054,2]
[311911172,1705494642361,-500.0,0.00022054,2]
[311911173,1705494642370,-500.0,0.00022054,2]
[311911174,1705494642380,-5602.24,0.00022054,2]
[311911175,1705494642388,-500.0,0.00022054,2]
[311911176,1705494642398,-500.0,0.00022054,2]
[311911177,1705494642407,-500.0,0.00022054,2]
[311911178,1705494642416,-500.0,0.00022054,2]
[311911179,1705494642425,-500.0,0.00022054,2]
[311911180,1705494642435,-2672.14,0.00022054,2]
[311911181,1705494642444,-500.0,0.00022054,2]
[311911182,1705494642453,-500.0,0.00022054,2]
[311911183,1705494642462,-500.0,0.00022054,2]
[311911184,1705494642471,-500.0,0.00022054,2]
[311911185,1705494642480,-500.0,0.00022054,2]
[311911186,1705494642489,-500.0,0.00022054,2]
[311911187,1705494642498,-500.0,0.00022054,2]
[311911188,1705494642507,-500.0,0.00022054,2]
[311911189,1705494642517,-500.0,0.00022054,2]
[311911190,1705494642526,-7801.45139057,0.00022091,2]
[311911191,1705494642535,-88.36525533,0.00022189,2]
[311911192,1705494642676,-66.60375087,0.00022189,2]
[311911193,1705494642686,-1580.16851554,0.0002219,2]
[311911194,1705494642695,-343.39801674,0.0002219,2]
[311911195,1705494642764,-1608.65,0.00021907,3]
[311911196,1705494642774,-408.30555975,0.00021917,2]
[311911197,1705494642784,-500.0,0.00021917,2]
[311911198,1705494642798,-327.43482098,0.00021917,2]
[311911199,1705494642807,-156.46463942,0.00022054,2]
[311911426,1705495258097,576.32260738,0.00016435,2]
[311911427,1705495258126,890.35403735,0.00016435,2]
[311911430,1705495294013,3215.63352838,0.00016435,2]
[311911431,1705495298092,547.46838753,0.00016435,2]
[311911434,1705495312033,1023.11601732,0.00016435,2]
[311911435,1705495318104,205.10822487,0.00016435,2]
[311911436,1705495325040,1108.86696375,0.00016435,2]
[311911438,1705495343022,218.23474483,0.00016435,2]
[311911517,1705495771464,180.27983491,0.00016435,2]
[311911518,1705495799810,154.9690062,0.00016435,2]
[311911519,1705495817908,238.12854872,0.00016435,2]
[311911546,1705495832592,-154.9690062,0.00019704,2]
[311911547,1705495832601,-154.9690062,0.00019705,3]
[311911548,1705495832610,-1166.77793447,0.00019706,2]
[311911549,1705495832619,-159.87666002,0.00019722,2]
[311911550,1705495832628,-4662.0523513,0.00019746,2]
[311911551,1705495832638,-11183.8848123,0.000198,2]
[311911552,1705495832647,-864.4488149,0.00019898,2]
[311911553,1705495832656,-226.70120171,0.00019954,2]
[311911554,1705495832666,-372.980058,0.00020007,2]
[311911555,1705495832675,-1583.5799217,0.00020077,2]
[311911556,1705495832684,-368.79624368,0.00021,2]
[311911557,1705495832693,-1815.68321298,0.00021,2]
[311911558,1705495832702,-174.84058368,0.00021913,2]
[311911559,1705495832711,-154.98450155,0.00021914,2]
[311911560,1705495832721,-1580.16851554,0.00021915,2]
[311911561,1705495832730,-25338.01129598,0.00021915,2]
[311911607,1705495838690,-1390.23,0.00021907,3]
[311911609,1705495838700,-7647.73356391,0.00021915,2]
[311911612,1705495838750,-59845.25514011,0.00021915,2]
[311911613,1705495838759,-500.0,0.00021917,2]
[311911614,1705495838768,-547.60006591,0.00021917,2]
[311911615,1705495838777,-500.0,0.00021917,2]
[311911616,1705495838877,-488.04280479,0.00021917,2]
[311911617,1705495838886,-500.0,0.00021917,2]
[311911618,1705495838895,-500.0,0.00021917,2]
[311911619,1705495838904,-500.0,0.00021917,2]
[311911620,1705495838914,-500.0,0.00021917,2]
[311911621,1705495838923,-500.0,0.00021917,2]
[311911622,1705495838932,-500.0,0.00021917,2]
[311911623,1705495838941,-500.0,0.00021917,2]
[311911624,1705495838950,-500.0,0.00021917,2]
[311911626,1705495838959,-500.0,0.00021917,2]
[311911628,1705495838968,-500.0,0.00021917,2]
[311911630,1705495838977,-388.70818294,0.00021917,2]
[311911632,1705495838986,-505.07,0.00021917,2]
[311911634,1705495838995,-535.84483329,0.00021917,2]
[311911636,1705495839004,-500.0,0.00021917,2]
[311911638,1705495839013,-363.32405101,0.00021917,2]
[311911640,1705495839023,-500.0,0.00021917,2]
[311911642,1705495839032,-500.0,0.00021917,2]
[311911644,1705495839041,-550.8718415,0.00021917,2]
[311911646,1705495839050,-500.0,0.00021917,2]
[311911648,1705495839059,-502.99980085,0.00021917,2]
[311911650,1705495839068,-500.0,0.00021917,2]
[311911652,1705495839078,-540.7180897,0.00021917,2]
[311911655,1705495839087,-500.0,0.00021917,2]
[311911656,1705495839096,-632.46,0.00021917,2]
[311911659,1705495839106,-569.61165838,0.00021917,2]
[311911660,1705495839115,-500.0,0.00021917,2]
[311911662,1705495839124,-398.41303084,0.00021917,2]
[311911664,1705495839133,-500.0,0.00021917,2]
[311911666,1705495839143,-543.08,0.00021917,2]
[311911668,1705495839152,-916.15,0.00021917,2]
[311911670,1705495839162,-500.0,0.00021917,2]
[311911672,1705495839172,-500.0,0.00021917,2]
[311911674,1705495839181,-500.0,0.00021917,2]
[311911676,1705495839190,-500.0,0.00021917,2]
[311911678,1705495839200,-500.0,0.00021917,2]
[311911680,1705495839209,-1862.83,0.00021917,2]
[311911682,1705495839218,-500.0,0.00021917,2]
[311911684,1705495839228,-1417.6,0.00021917,2]
[311911686,1705495839237,-500.0,0.00021917,2]
[311911688,1705495839247,-500.0,0.00021917,2]
[311911690,1705495839256,-500.0,0.00021917,2]
[311911692,1705495839265,-500.0,0.00021917,2]
[311911694,1705495839275,-2571.92,0.00021917,2]
[311911696,1705495839284,-500.0,0.00021917,2]
[311911698,1705495839293,-444.85689834,0.00021917,2]
[311911701,1705495839303,-500.0,0.00021917,2]
[311911703,1705495839312,-500.0,0.00021917,2]
[311911705,1705495839322,-389.81459753,0.00021917,2]
[311911708,1705495839343,-500.0,0.00021917,2]
[311911710,1705495839353,-751.02,0.00021917,2]
[311911711,1705495839363,-500.0,0.00021917,2]
[311911712,1705495839373,-500.0,0.00021917,2]
[311911713,1705495839383,-500.0,0.00021917,2]
[311911715,1705495839393,-500.0,0.00021917,2]
[311911717,1705495839403,-500.0,0.00021917,2]
[311911719,1705495839414,-500.0,0.00021917,2]
[311911721,1705495839424,-500.0,0.00021917,2]
[311911723,1705495839434,-500.0,0.00021917,2]
[311911725,1705495839443,-500.0,0.00021917,2]
[311911727,1705495839453,-616.94,0.00021917,2]
[311911728,1705495839462,-717.17,0.00021917,2]
[311911730,1705495839472,-500.0,0.00021917,2]
[311911732,1705495839481,-608.64434299,0.00021917,2]
[311911734,1705495839490,-1044.7,0.00021917,2]
[311911736,1705495839500,-500.0,0.00021917,2]
[311911738,1705495839509,-554.61,0.00021917,2]
[311911740,1705495839519,-500.0,0.00021917,2]
[311911742,1705495839528,-500.0,0.00021917,2]
[311911744,1705495839538,-500.0,0.00021917,2]
[311911746,1705495839548,-500.0,0.00021917,2]
[311911748,1705495839557,-500.0,0.00021917,2]
[311911750,1705495839567,-500.0,0.00021917,2]
[311911752,1705495839577,-829.9,0.00021917,2]
[311911754,1705495839587,-500.0,0.00021917,2]
[311911756,1705495839596,-500.0,0.00021917,2]
[311911758,1705495839607,-500.0,0.00021917,2]
[311911760,1705495839616,-1111.66,0.00021917,2]
[311911762,1705495839626,-500.0,0.00021917,2]
[311911765,1705495839636,-500.0,0.00021917,2]
[311911767,1705495839645,-500.0,0.00021917,2]
[311911769,1705495839655,-382.58669765,0.00021917,2]
[311911771,1705495839665,-500.0,0.00021917,2]
[311911773,1705495839675,-500.0,0.00021917,2]
[311911775,1705495839684,-500.0,0.00021917,2]
[311911777,1705495839694,-500.0,0.00021917,2]
[311911779,1705495839703,-500.0,0.00021917,2]
[311911781,1705495839713,-500.0,0.00021917,2]
[311911783,1705495839722,-750.99,0.00021917,2]
[311911785,1705495839731,-500.0,0.00021917,2]
[311911787,1705495839741,-500.0,0.00021917,2]
[311911789,1705495839750,-500.0,0.00021917,2]
[311911791,1705495839760,-500.0,0.00021917,2]
[311911793,1705495839769,-619.60676546,0.00021917,2]
[311911795,1705495839779,-6221.94,0.00021917,2]
[311911797,1705495839788,-716.92,0.00021917,2]
[311911799,1705495839798,-1555.98,0.00021917,2]
[311911801,1705495839809,-434.48775725,0.00021917,2]
[311911804,1705495839820,-1244.47,0.00021917,2]
[311911805,1705495839829,-500.0,0.00021917,2]
[311911808,1705495839839,-500.0,0.00021917,2]
[311911810,1705495839849,-500.0,0.00021917,2]
[311911811,1705495839858,-500.0,0.00021917,2]
[311911813,1705495839868,-500.0,0.00021917,2]
[311911816,1705495839878,-763.41,0.00021917,2]
[311911818,1705495839887,-500.0,0.00021917,2]
[311911820,1705495839897,-500.0,0.00021917,2]
[311911822,1705495839909,-500.0,0.00021917,2]
[311911823,1705495839919,-500.0,0.00021917,2]
[311911826,1705495839929,-500.0,0.00021917,2]
[311911828,1705495839938,-500.0,0.00021917,2]
[311911830,1705495839948,-500.0,0.00021917,2]
[311911831,1705495839957,-791.04,0.00021917,2]
[311911834,1705495839967,-615.23,0.00021917,2]
[311911836,1705495839976,-500.0,0.00021917,2]
[311911838,1705495839986,-500.0,0.00021917,2]
[311911840,1705495839995,-500.0,0.00021917,2]
[311911842,1705495840005,-500.0,0.00021917,2]
[311911844,1705495840015,-1966.26,0.00021917,2]
[311911846,1705495840024,-500.0,0.00021917,2]
[311911848,1705495840033,-1571.53,0.00021917,2]
[311911851,1705495840043,-500.0,0.00021917,2]
[311911853,1705495840052,-500.0,0.00021917,2]
[311911855,1705495840062,-500.0,0.00021917,2]
[311911857,1705495840071,-1169.7,0.00021917,2]
[311911859,1705495840081,-2548.85,0.00021917,2]
[311911861,1705495840090,-201.40168416,0.00021917,2]
[311911863,1705495840099,-500.0,0.00021917,2]
[311911865,1705495840109,-500.0,0.00021917,2]
[311911867,1705495840118,-500.0,0.00021917,2]
[311911869,1705495840127,-1818.55,0.00021917,2]
[311911871,1705495840136,-500.0,0.00021917,2]
[311911873,1705495840146,-598.60148851,0.00021917,2]
[311911875,1705495840158,-500.0,0.00021917,2]
[311911877,1705495840168,-506.24435026,0.00021917,2]
[311911879,1705495840182,-13972.64,0.00021917,2]
[311911881,1705495840192,-500.0,0.00021917,2]
[311911883,1705495840201,-500.0,0.00021917,2]
[311911885,1705495840210,-500.0,0.00021917,2]
[311911887,1705495840219,-500.0,0.00021917,2]
[311911889,1705495840229,-14383.04,0.00021917,2]
[311911891,1705495840239,-500.0,0.00021917,2]
[311911893,1705495840249,-500.0,0.00021917,2]
[311911895,1705495840258,-999.8,0.00021917,2]
[311911897,1705495840268,-999.8,0.00021917,2]
[311911899,1705495840278,-999.8,0.00021917,2]
[311911901,1705495840287,-999.8,0.00021917,2]
[311911903,1705495840297,-999.8,0.00021917,2]
[311911905,1705495840306,-999.8,0.00021917,2]
[311911907,1705495840316,-1068.65134143,0.00021917,2]
[311911910,1705495840326,-500.0,0.00021917,2]
[311911912,1705495840336,-723.58,0.00021917,2]
[311911914,1705495840346,-632.56,0.00021917,2]
[311911916,1705495840355,-500.0,0.00021917,2]
[311911918,1705495840369,-2384.99,0.00021917,2]
[311911920,1705495840379,-500.0,0.00021917,2]
[311911922,1705495840388,-500.0,0.00021917,2]
[311911923,1705495840398,-500.0,0.00021917,2]
[311911925,1705495840407,-500.0,0.00021917,2]
[311911927,1705495840419,-500.0,0.00021917,2]
[311911929,1705495840428,-490.57231035,0.00021917,2]
[311911931,1705495840438,-500.0,0.00021917,2]
[311911933,1705495840447,-669.01,0.00021917,2]
[311911935,1705495840457,-159.14815525,0.00021917,2]
[311911937,1705495840467,-500.0,0.00021917,2]
[311911939,1705495840476,-1440.83,0.00021917,2]
[311911941,1705495840485,-500.0,0.00021917,2]
[311911943,1705495840494,-500.0,0.00021917,2]
[311911945,1705495840504,-500.0,0.00021917,2]
[311911947,1705495840513,-5668.33,0.00021917,2]
[311911950,1705495840523,-500.0,0.00021917,2]
[311911951,1705495840532,-500.0,0.00021917,2]
[311911953,1705495840541,-7130.5,0.00021917,2]
[311911955,1705495840551,-500.0,0.00021917,2]
[311911956,1705495840560,-500.0,0.00021917,2]
[311911957,1705495840570,-8042.3,0.00021917,2]
[311911958,1705495840665,-2607.88,0.00021917,2]
[311911960,1705495840674,-27179.18,0.00021917,2]
[311911961,1705495840684,-500.0,0.00021917,2]
[311911962,1705495840693,-500.0,0.00021917,2]
[311911963,1705495840702,-2672.14,0.00021917,2]
[311911964,1705495840712,-500.0,0.00021917,2]
[311911965,1705495840721,-500.0,0.00021917,2]
[311911967,1705495840731,-500.0,0.00021917,2]
[311911969,1705495840740,-500.0,0.00021917,2]
[311911970,1705495840749,-791.52,0.00021917,2]
[311911971,1705495840758,-328.04093624,0.00021917,2]
[311911972,1705495840767,-500.0,0.00021917,2]
[311911973,1705495840776,-500.0,0.00021917,2]
[311911974,1705495840785,-500.0,0.00021917,2]
[311911975,1705495840794,-166.666666,0.00021918,2]
[311911976,1705495840803,-293.1976279,0.00022,4]
[311911977,1705495840813,-425.53656097,0.00022,2]
[311911978,1705495840823,-3955.54830897,0.00022,2]
[311911979,1705495840832,-374.76193364,0.00022,2]
[311911980,1705495840842,-999.8,0.00022041,2]
[311911981,1705495840850,-5000.0,0.00022042,2]
[311911982,1705495840859,-9804.93387011,0.00022042,2]
[311911983,1705495840869,-9194.09084094,0.00022042,2]
[311911984,1705495840878,-1050.0,0.00022042,2]
[311911985,1705495840886,-5000.0,0.00022042,2]
[311911986,1705495840895,-5000.0,0.00022042,2]
[311911987,1705495840904,-50000.0,0.00022042,2]
[311911988,1705495840916,-61642.42735863,0.00022042,2]
[311911989,1705495840925,-999.8,0.00022053,2]
[311911990,1705495840934,-999.8,0.00022053,2]
[311911991,1705495840943,-999.8,0.00022053,2]
[311911992,1705495840952,-154.9690062,0.00022054,2]
[311911993,1705495840961,-200.0,0.00022054,2]
[311911994,1705495840970,-1824.28362895,0.00022054,2]
[311911995,1705495840985,-500.0,0.00022054,2]
[311911996,1705495841000,-500.0,0.00022054,2]
[311911997,1705495841022,-500.0,0.00022054,2]
[311911998,1705495841037,-500.0,0.00022054,2]
[311911999,1705495841046,-500.0,0.00022054,2]
[311912000,1705495841055,-500.0,0.00022054,2]
[311912001,1705495841064,-500.0,0.00022054,2]
[311912002,1705495841074,-500.0,0.00022054,2]
[311912003,1705495841083,-500.0,0.00022054,2]
[311912004,1705495841092,-500.0,0.00022054,2]
[311912005,1705495841102,-505.07,0.00022054,2]
[311912006,1705495841111,-500.0,0.00022054,2]
[311912007,1705495841121,-500.0,0.00022054,2]
[311912008,1705495841130,-500.0,0.00022054,2]
[311912009,1705495841139,-500.0,0.00022054,2]
[311912010,1705495841150,-429.95876673,0.00022054,2]
[311912011,1705495841161,-500.0,0.00022054,2]
[311912012,1705495841172,-500.0,0.00022054,2]
[311912013,1705495841182,-506.80923371,0.00022054,2]
[311912014,1705495841191,-543.08,0.00022054,2]
[311912015,1705495841201,-916.15,0.00022054,2]
[311912016,1705495841210,-500.0,0.00022054,2]
[311912017,1705495841220,-420.57604732,0.00022054,2]
[311912018,1705495841230,-156.63761755,0.00022054,2]
[311912019,1705495841239,-1862.83,0.00022054,2]
[311912020,1705495841248,-1323.41213733,0.00022054,2]
[311912161,1705495844899,-839.8,0.00021917,2]
[311912163,1705495844909,-1158.53,0.00022044,3]
[311912165,1705495844919,-94.18786267,0.00022054,2]
[311912167,1705495844928,-500.0,0.00022054,2]
[311912169,1705495844937,-500.0,0.00022054,2]
[311912171,1705495844946,-500.0,0.00022054,2]
[311912172,1705495844956,-346.62671906,0.00022054,2]
[311912175,1705495844965,-500.0,0.00022054,2]
[311912176,1705495844974,-240.9541517,0.00022054,2]
[311912182,1705495845021,-2330.9658483,0.00022054,2]
[311912184,1705495845030,-500.0,0.00022054,2]
[311912186,1705495845039,-500.0,0.00022054,2]
[311912188,1705495845049,-239.24552081,0.00022054,2]
[311912190,1705495845058,-751.02,0.00022054,2]
[311912192,1705495845067,-500.0,0.00022054,2]
[311912194,1705495845076,-500.0,0.00022054,2]
[311912196,1705495845086,-500.0,0.00022054,2]
[311912199,1705495845095,-500.0,0.00022054,2]
[311912200,1705495845104,-500.0,0.00022054,2]
[311912203,1705495845113,-500.0,0.00022054,2]
[311912204,1705495845123,-500.0,0.00022054,2]
[311912206,1705495845132,-500.0,0.00022054,2]
[311912209,1705495845141,-616.94,0.00022054,2]
[311912211,1705495845154,-717.17,0.00022054,2]
[311912213,1705495845164,-177.52865441,0.00022054,2]
[311912214,1705495845174,-1044.7,0.00022054,2]
[311912216,1705495845182,-554.61,0.00022054,2]
[311912218,1705495845192,-500.0,0.00022054,2]
[311912220,1705495845202,-500.0,0.00022054,2]
[311912222,1705495845212,-500.0,0.00022054,2]
[311912224,1705495845225,-313.04977648,0.00022054,2]
[311912226,1705495845238,-186.95022352,0.00022054,2]
[311912227,1705495845248,-234.33268548,0.00022054,2]
[311912228,1705495845259,-271.71319403,0.00022054,2]
[311912230,1705495845268,-829.9,0.00022054,2]
[311912232,1705495845278,-500.0,0.00022054,2]
[311912242,1705495845361,-500.0,0.00022054,2]
[311912244,1705495845371,-500.0,0.00022054,2]